bitfinex/quotes_SOLUSD_20250904
["timestamp","ask_amount","ask_price","bid_price","bid_amount"]
[1757016774191,0.06,203.19,203.18,51.78494558]
[1757016774370,0.75,203.19,203.18,87.20614835]
[1757016775085,0.75,203.19,203.18,90.14278401]
[1757016775289,0.75,203.19,203.18,90.28494558]
[1757016777378,0.75,203.19,203.18,25.78494558]
[1757016777698,0.75,203.19,203.18,52.21775558]
[1757016778979,0.75,203.19,203.18,52.07559401]
[1757016779184,3.68663566,203.19,203.18,52.07559401]
[1757016779400,0.75,203.19,203.18,52.07559401]
[1757016780094,3.68663566,203.19,203.18,13.59559401]
[1757016780279,3.68663566,203.19,203.18,52.07559401]
[1757016781781,8.6081377,203.19,203.18,13.59559401]
[1757016782001,8.6081377,203.19,203.18,38.48]
[1757016783902,3.68663566,203.19,203.18,38.48]
[1757016784414,3.68663566,203.19,203.18,52.07559401]
[1757016788002,0.75,203.19,203.18,52.07559401]
[1757016788202,3.68663566,203.19,203.18,52.07559401]
[1757016790307,3.68663566,203.19,203.14,0.03]
[1757016790308,8.6081377,203.19,203.14,0.03]
[1757016790489,10.65295641,203.19,203.16,13.59559401]
[1757016790805,0.69,203.18,203.17,38.48]
[1757016791812,3.62663566,203.18,203.17,38.48]
[1757016792911,8.54837992,203.18,203.17,38.48]
[1757016793220,34.54837992,203.18,203.17,38.48]
[1757016793591,26.69,203.18,203.17,38.48]
[1757016793807,29.62663566,203.18,203.17,38.48]
[1757016794990,29.62663566,203.18,203.14,0.03]
[1757016795195,0.69,203.17,203.16,13.59559401]
[1757016795725,3.62663566,203.17,203.16,13.59559401]
[1757016795903,3.62663566,203.17,203.16,52.07559401]
[1757016796094,3.62663566,203.17,203.14,0.03]
[1757016796293,0.69,203.16,203.15,52.07559401]
[1757016796722,2.93663566,203.17,203.16,13.59559401]
[1757016797015,3.62663566,203.17,203.16,52.05559401]
[1757016799107,3.62663566,203.17,203.16,13.59559401]
[1757016799313,3.62663566,203.17,203.16,52.05559401]
[1757016799514,5.2782686,203.17,203.16,52.05559401]
[1757016799891,10.20035756,203.17,203.14,0.03]
[1757016800090,4.5882686,203.15,203.14,0.03]
[1757016800492,4.5882686,203.15,203.14,38.49]
[1757016800493,10.20073968,203.15,203.14,38.49]
[1757016803210,5.2782686,203.15,203.14,38.49]
[1757016803408,5.2782686,203.15,203.14,52.08559401]
[1757016803722,0.69,203.15,203.14,52.08559401]
[1757016804306,5.2782686,203.15,203.14,52.08559401]
[1757016804707,5.2782686,203.15,203.14,38.49]
[1757016805525,10.20073968,203.15,203.14,38.49]
[1757016805998,10.20073968,203.15,203.14,0.03]
[1757016806198,10.20073968,203.15,203.14,38.49]
[1757016808723,5.2782686,203.15,203.14,38.49]
[1757016809137,10.20073968,203.15,203.14,0.03]
[1757016809340,10.20073968,203.15,203.14,38.49]
[1757016809511,10.20073968,203.15,203.14,0.03]
[1757016809715,10.20073968,203.15,203.14,38.49]
[1757016812822,30.5882686,203.15,203.14,38.49]
[1757016813130,4.5882686,203.16,203.14,52.08559401]
[1757016814752,5.2782686,203.16,203.14,52.08559401]
[1757016815250,4.5882686,203.16,203.14,52.08559401]
[1757016815752,0.03,203.17,203.14,52.08559401]
[1757016815930,31.2782686,203.16,203.14,52.08559401]
[1757016816317,4.5882686,203.15,203.14,52.08559401]
[1757016818834,5.2782686,203.15,203.14,38.49]
[1757016819621,10.20073968,203.15,203.14,38.49]
[1757016819925,5.61247108,203.15,203.14,38.49]
[1757016820220,5.2782686,203.15,203.14,38.49]
[1757016822033,0.69,203.15,203.14,38.49]
[1757016822229,5.2782686,203.15,203.14,38.49]
[1757016824110,26.69,203.15,203.14,38.49]
[1757016824316,31.2782686,203.15,203.14,38.49]
[1757016826021,31.3082686,203.15,203.14,38.49]
[1757016830962,26.72,203.15,203.14,38.49]
[1757016831141,31.3082686,203.15,203.14,38.49]
[1757016833548,30.6182686,203.15,203.14,38.49]
[1757016833731,0.03,203.15,203.14,52.08559401]
[1757016833944,0.03,203.15,203.14,52.49559401]
[1757016834137,0.03,203.15,203.14,57.56046897]
[1757016834359,0.03,203.15,203.14,62.14873757]
[1757016836252,0.03,203.15,203.14,13.76775558]
[1757016836439,0.03,203.15,203.14,52.18775558]
[1757016838762,0.03,203.15,203.14,13.62559401]
[1757016838942,5.2782686,203.15,203.14,13.62559401]
[1757016839144,5.2782686,203.15,203.14,52.02559401]
[1757016839556,4.6182686,203.15,203.14,52.02559401]
[1757016839751,0.03,203.15,203.14,52.02559401]
[1757016841046,0.03,203.15,203.14,62.08873757]
[1757016843247,0.03,203.15,203.14,142.08873757]
[1757016843566,0.03,203.15,203.14,162.08873757]
[1757016846455,0.06,203.19,203.18,18.32602418]
[1757016846655,0.06,203.19,203.18,57.2181986]
[1757016846857,0.06,203.19,203.18,57.6281986]
[1757016847249,1e-08,203.19,203.18,62.54994286]
[1757016847449,0.06,203.2,203.19,13.73775558]
[1757016847450,1e-08,203.2,203.19,13.73775558]
[1757016847743,1e-08,203.2,203.19,23.32429278]
[1757016847953,1e-08,203.22,203.21,44.32602418]
[1757016848151,1e-08,203.22,203.21,83.19812594]
[1757016848366,1e-08,203.22,203.21,83.60812594]
[1757016849356,1e-08,203.23,203.22,13.73775558]
[1757016849556,1e-08,203.23,203.22,18.73602418]
[1757016849955,0.06,203.25,203.24,39.73775558]
[1757016850153,1e-08,203.25,203.24,83.1980533]
[1757016850474,1e-08,203.25,203.24,83.6080533]
[1757016851671,1e-08,203.25,203.24,88.52834458]
[1757016852768,1e-08,203.25,203.24,88.11834458]
[1757016854171,1e-08,203.25,203.24,88.09834458]
[1757016854751,1e-08,203.25,203.24,49.73834458]
[1757016855374,1e-08,203.25,203.24,88.09834458]
[1757016855772,1e-08,203.25,203.24,90.0702936]
[1757016858470,1e-08,203.25,203.24,51.7102936]
[1757016858771,1e-08,203.25,203.24,90.0702936]
[1757016859261,1e-08,203.25,203.24,170.0702936]
[1757016859457,1e-08,203.25,203.24,167.92140115]
[1757016859975,1e-08,203.25,203.24,167.95140115]
[1757016860271,1e-08,203.25,203.24,168.36140115]
[1757016860453,1e-08,203.25,203.24,167.95140115]
[1757016862166,1e-08,203.25,203.24,168.36140115]
[1757016865466,1e-08,203.25,203.24,167.95140115]
[1757016867368,0.06,203.28,203.27,39.59559401]
[1757016867553,1e-08,203.28,203.27,81.00916085]
[1757016867757,1e-08,203.28,203.27,81.91111736]
[1757016867977,1e-08,203.28,203.27,83.88258043]
[1757016868552,1e-08,203.28,203.27,83.47258043]
[1757016869088,1e-08,203.28,203.27,88.39214554]
[1757016870784,1e-08,203.3,203.28,13.73775558]
[1757016870970,1e-08,203.31,203.3,13.73775558]
[1757016871170,1e-08,203.31,203.3,16.66916085]
[1757016871376,1e-08,203.31,203.3,18.64052677]
[1757016871573,0.66000001,203.31,203.3,18.64052677]
[1757016872776,0.66000001,203.31,203.3,23.55936592]
[1757016872987,0.66000001,203.31,203.3,61.87936592]
[1757016873372,0.66000001,203.31,203.3,23.55936592]
[1757016873772,0.66000001,203.31,203.3,61.87936592]
[1757016873978,1e-08,203.31,203.3,61.87936592]
[1757016874168,0.66000001,203.31,203.3,61.87936592]
[1757016874888,0.66000001,203.31,203.3,23.55936592]
[1757016875072,0.66000001,203.31,203.3,61.87936592]
[1757016875585,0.66000001,203.31,203.3,58.94796065]
[1757016875767,1e-08,203.32,203.3,100.50687091]
[1757016875965,1e-08,203.32,203.31,16.66916085]
[1757016876365,1e-08,203.32,203.31,18.64013821]
[1757016876995,1e-08,203.32,203.31,23.55873542]
[1757016877993,0.66000001,203.32,203.31,61.87873542]
[1757016879766,1e-08,203.32,203.31,61.87873542]
[1757016880372,0.66000001,203.32,203.31,61.87873542]
[1757016881906,0.66000001,203.32,203.31,46.62733015]
[1757016882200,0.66000001,203.32,203.31,61.71657385]
[1757016882487,0.66000001,203.32,203.31,61.85873542]
[1757016882701,0.66000001,203.32,203.31,61.71657385]
[1757016883195,0.66000001,203.32,203.31,61.85873542]
[1757016883783,1e-08,203.32,203.31,61.85873542]
[1757016883974,0.66000001,203.32,203.31,61.85873542]
[1757016887499,0.66000001,203.32,203.31,58.92733015]
[1757016888476,0.66000001,203.32,203.31,61.85873542]
[1757016891098,0.66000001,203.32,203.31,58.92733015]
[1757016891305,0.66000001,203.32,203.31,61.85873542]
[1757016894597,0.66000001,203.32,203.31,61.88873542]
[1757016895495,0.66000001,203.32,203.31,58.95733015]
[1757016896994,0.66000001,203.32,203.31,52.06775558]
[1757016898206,0.66000001,203.32,203.31,56.98635279]
[1757016900298,1e-08,203.32,203.31,59.91775806]
[1757016900491,1e-08,203.32,203.31,60.32775806]
[1757016900692,1e-08,203.32,203.31,62.29902682]
[1757016902323,1e-08,203.32,203.31,61.88902682]
[1757016903811,1e-08,203.32,203.31,141.88902682]
[1757016904402,0.66000001,203.32,203.31,141.88902682]
[1757016904599,0.66000001,203.32,203.31,138.81545998]
[1757016904804,0.66000001,203.32,203.31,56.84419122]
[1757016905112,0.66000001,203.32,203.31,56.98635279]
[1757016906117,0.66000001,203.32,203.31,13.76775558]
[1757016906330,0.66000001,203.32,203.3,0.03]
[1757016906331,11.44116585,203.32,203.3,0.03]
[1757016906490,26.0,203.28,203.27,0.03]
[1757016906682,28.93140527,203.28,203.25,0.03]
[1757016906902,28.93140527,203.28,203.24,38.31]
[1757016906903,2.93140527,203.26,203.24,37.64]
[1757016907084,14.65702635,203.25,203.11,14.82764225]
[1757016907284,5.86281054,203.22,203.11,15.53764225]
[1757016907504,5.86281054,203.22,203.11,0.74]
[1757016907715,5.86281054,203.22,203.11,0.03]
[1757016907716,26.0,203.18,203.11,0.03]
[1757016908016,2.93140527,203.15,203.12,36.08]
[1757016908189,26.0,203.17,203.11,0.03]
[1757016908385,28.93140527,203.15,203.11,0.03]
[1757016908589,32.5836923,203.15,203.11,0.03]
[1757016908789,29.65228703,203.15,203.11,0.03]
[1757016909000,32.5836923,203.15,203.11,0.03]
[1757016909205,28.93140527,203.12,203.11,0.03]
[1757016909425,6.5836923,203.12,203.11,0.03]
[1757016909591,26.0,203.17,203.11,0.03]
[1757016909791,2.93140527,203.17,203.13,0.14216157]
[1757016909986,2.93140527,203.18,203.15,13.59559401]
[1757016910215,2.93140527,203.19,203.15,13.59559401]
[1757016910517,1.97301896,203.24,203.16,0.14216157]
[1757016910824,1.97301896,203.24,203.18,13.59559401]
[1757016910996,2.93140527,203.22,203.18,13.59559401]
[1757016911192,2.93140527,203.19,203.17,38.28]
[1757016911391,2.93140527,203.18,203.17,38.28]
[1757016911803,2.93140527,203.19,203.17,38.28]
[1757016912006,2.93140527,203.18,203.17,38.28]
[1757016914209,1.97301896,203.24,203.18,13.59559401]
[1757016914607,2.93140527,203.22,203.18,13.59559401]
[1757016914800,2.93140527,203.22,203.18,19.22732987]
[1757016915003,1.97301896,203.24,203.2,13.59559401]
[1757016915202,2.93140527,203.22,203.21,38.3]
[1757016915836,4.91989925,203.29,203.22,13.59559401]
[1757016916034,4.91883249,203.31,203.23,0.85216157]
[1757016916202,2.93140527,203.28,203.25,13.59559401]
[1757016916402,2.93140527,203.27,203.25,13.59559401]
[1757016917428,2.93140527,203.28,203.25,13.59559401]
[1757016917725,2.93140527,203.29,203.25,13.59559401]
[1757016917906,2.93140527,203.29,203.26,0.7]
[1757016918104,1e-08,203.32,203.28,13.59559401]
[1757016918321,2.93140527,203.31,203.28,13.59559401]
[1757016918514,2.93140527,203.29,203.24,0.7]
[1757016918715,2.93140527,203.27,203.26,13.59559401]
[1757016918925,2.93140527,203.27,203.26,38.32]
[1757016919233,2.93140527,203.27,203.19,0.7]
[1757016919541,2.93140527,203.2,203.17,13.59559401]
[1757016919733,2.93140527,203.18,203.14,5.62271339]
[1757016920030,26.0,203.24,203.14,5.62271339]
[1757016920031,2.93140527,203.17,203.16,13.59559401]
[1757016920206,2.93140527,203.17,203.16,13.73775558]
[1757016920406,2.93140527,203.17,203.16,14.43775558]
[1757016920613,2.93140527,203.18,203.16,14.43775558]
[1757016921027,2.93140527,203.18,203.17,0.7]
[1757016921234,2.93140527,203.19,203.17,0.7]
[1757016921433,4.58699849,203.19,203.18,38.34]
[1757016921645,26.0,203.24,203.19,13.59559401]
[1757016921846,4.58699849,203.24,203.21,13.59559401]
[1757016922144,26.00000001,203.32,203.23,13.59559401]
[1757016922325,4.58699849,203.27,203.23,13.59559401]
[1757016922638,4.58699849,203.26,203.23,13.59559401]
[1757016922826,26.00000001,203.32,203.25,13.59559401]
[1757016922827,1e-08,203.32,203.25,13.59559401]
[1757016923006,4.58699849,203.27,203.25,13.59559401]
[1757016923337,4.58699849,203.27,203.26,38.38]
[1757016923545,4.58699849,203.27,203.19,4.92136246]
[1757016923710,4.58699849,203.23,203.21,13.59559401]
[1757016923910,26.0,203.27,203.22,38.46]
[1757016924143,4.58699849,203.23,203.18,13.59559401]
[1757016924311,4.58699849,203.21,203.2,13.59559401]
[1757016924511,4.58699849,203.21,203.14,0.7]
[1757016924706,4.58699849,203.2,203.15,52.09559401]
[1757016924914,4.92150204,203.19,203.15,38.5]
[1757016925145,4.92150204,203.19,203.16,38.5]
[1757016925844,4.58699849,203.17,203.11,0.03]
[1757016926014,4.58699849,203.12,203.11,13.62559401]
[1757016926217,4.58699849,203.12,203.11,52.84559401]
[1757016927114,4.58699849,203.14,203.11,52.84559401]
[1757016927315,4.58699849,203.13,203.11,52.84559401]
[1757016927516,11.08092531,203.13,203.11,52.84559401]
[1757016927924,11.08092531,203.12,203.11,52.14559401]
[1757016928219,11.08092531,203.13,203.11,52.84559401]
[1757016928715,11.08092531,203.13,203.12,0.7]
[1757016928913,26.0,203.22,203.13,0.14216157]
[1757016929113,26.0,203.22,203.15,13.59559401]
[1757016929338,11.08092531,203.17,203.15,13.59559401]
[1757016929520,11.08092531,203.16,203.15,13.59559401]
[1757016929836,11.08092531,203.16,203.11,4.95320643]
[1757016930137,11.08092531,203.13,203.12,39.36216157]
[1757016930443,11.08092531,203.14,203.13,13.59559401]
[1757016930919,11.08092531,203.14,203.13,14.29559401]
[1757016932335,4.9217746,203.18,203.13,13.59559401]
[1757016932538,11.08092531,203.14,203.13,13.59559401]
[1757016933743,11.08092531,203.15,203.13,13.59559401]
[1757016934041,26.0,203.2,203.14,0.14216157]
[1757016934222,11.08092531,203.21,203.16,0.14216157]
[1757016934417,0.06,203.27,203.18,13.73775558]
[1757016934640,11.08092531,203.26,203.22,13.59559401]
[1757016934823,11.08092531,203.26,203.23,38.52]
[1757016935217,0.06,203.27,203.24,0.7]
[1757016935419,0.06,203.27,203.24,13.59559401]
[1757016935638,0.06,203.27,203.25,0.7]
[1757016935843,0.06,203.3,203.27,0.14216157]
[1757016936031,0.06,203.3,203.29,24.67651932]
[1757016936244,0.06,203.3,203.29,64.09868089]
[1757016936435,1e-08,203.32,203.3,0.14216157]
[1757016936755,1e-08,203.32,203.31,52.33775558]
[1757016937042,1e-08,203.32,203.31,63.41868089]
[1757016937238,1e-08,203.32,203.31,64.11868089]
[1757016937444,1e-08,203.32,203.31,69.52913782]
[1757016937618,0.06,203.34,203.31,69.52913782]
[1757016937619,0.06,203.34,203.33,39.73775558]
[1757016937816,0.2,203.35,203.34,13.73775558]
[1757016938021,0.2,203.35,203.34,14.43775558]
[1757016938241,0.2,203.35,203.34,53.05775558]
[1757016938437,0.2,203.35,203.34,64.13868089]
[1757016939027,0.2,203.35,203.34,25.51868089]
[1757016939230,0.2,203.35,203.34,64.11868089]
[1757016939434,0.2,203.35,203.34,53.03775558]
[1757016939637,0.2,203.35,203.34,69.03655243]
[1757016940031,0.2,203.36,203.35,0.14216157]
[1757016940228,0.2,203.36,203.35,51.51868089]
[1757016940631,0.2,203.36,203.35,90.13868089]
[1757016941043,0.2,203.36,203.35,90.15868089]
[1757016941439,0.2,203.36,203.35,53.05775558]
[1757016941638,0.2,203.36,203.35,69.07631059]
[1757016942963,0.2,203.36,203.35,13.73775558]
[1757016943162,0.2,203.36,203.35,52.35775558]
[1757016943326,0.2,203.36,203.35,52.21559401]
[1757016943529,0.2,203.36,203.35,13.59559401]
[1757016943736,11.28092531,203.36,203.35,52.23559401]
[1757016944224,0.2,203.36,203.35,52.23559401]
[1757016944428,11.28092531,203.36,203.35,52.23559401]
[1757016945145,11.28092531,203.36,203.35,13.59559401]
[1757016945455,16.37831319,203.36,203.27,26.0]
[1757016945757,11.08092531,203.3,203.28,13.59559401]
[1757016945953,11.08092531,203.29,203.24,13.59559401]
[1757016946252,11.08092531,203.28,203.24,14.29559401]
[1757016946430,0.18,203.32,203.25,39.34]
[1757016946630,11.08092531,203.29,203.26,0.14216157]
[1757016946836,11.08092531,203.3,203.28,13.59559401]
[1757016947355,11.08092531,203.31,203.29,38.64]
[1757016948130,4.91814155,203.33,203.29,38.64]
[1757016948348,26.0,203.35,203.29,52.23559401]
[1757016948547,11.08092531,203.33,203.3,13.59559401]
[1757016948968,0.2,203.36,203.31,0.81216157]
[1757016949139,0.2,203.36,203.33,0.14216157]
[1757016949460,0.2,203.36,203.35,24.81868089]
[1757016949651,0.03,203.41,203.4,26.0]
[1757016949841,0.03,203.41,203.4,90.18868089]
[1757016950041,0.2,203.48,203.46,0.14216157]
[1757016950259,0.2,203.48,203.47,79.12775558]
[1757016950555,4.91213767,203.58,203.48,13.73775558]
[1757016950759,0.7,203.59,203.48,14.40775558]
[1757016950936,0.7,203.59,203.48,25.48868089]
[1757016950937,11.78092531,203.59,203.48,25.48868089]
[1757016951260,11.78092531,203.59,203.48,53.14775558]
[1757016951261,0.7,203.59,203.48,53.14775558]
[1757016951553,11.08092531,203.57,203.48,64.22868089]
[1757016951760,11.08092531,203.57,203.48,69.1431688]
[1757016952254,0.7,203.58,203.48,69.1431688]
[1757016952460,11.78092531,203.58,203.48,69.1431688]
[1757016952755,0.7,203.61,203.48,69.1431688]
[1757016952960,11.08092531,203.6,203.48,69.1431688]
[1757016953254,0.7,203.61,203.48,69.1431688]
[1757016953464,15.99311173,203.58,203.48,19.32224349]
[1757016953754,11.08092531,203.57,203.48,69.1831688]
[1757016953959,11.08092531,203.58,203.48,58.10224349]
[1757016954255,15.99326975,203.57,203.48,58.10224349]
[1757016954457,15.99326975,203.57,203.48,69.1831688]
[1757016954758,0.7,203.56,203.48,95.1831688]
[1757016954956,11.08092531,203.55,203.48,95.1831688]
[1757016955259,16.69362226,203.56,203.48,95.1831688]
[1757016956251,0.2,203.49,203.48,95.2231688]
[1757016957757,0.2,203.49,203.48,69.2231688]
[1757016957964,0.2,203.49,203.48,71.19269046]
[1757016959246,0.2,203.53,203.52,13.73775558]
[1757016959454,0.2,203.53,203.52,63.63868089]
[1757016959642,0.2,203.53,203.52,64.30868089]
[1757016959842,0.2,203.53,203.52,69.2222029]
[1757016960042,0.7,203.62,203.56,13.59559401]
[1757016960260,0.7,203.64,203.61,13.59559401]
[1757016960443,11.08092531,203.62,203.52,15.99444732]
[1757016960646,11.08092531,203.6,203.56,13.73775558]
[1757016960849,30.90992871,203.67,203.58,13.59559401]
[1757016961047,11.08092531,203.6,203.59,52.41559401]
[1757016961351,11.78092531,203.6,203.59,52.41559401]
[1757016961864,0.7,203.6,203.59,52.41559401]
[1757016962080,5.61159135,203.6,203.59,38.82]
[1757016962264,16.69251666,203.6,203.59,38.82]
[1757016963063,26.0,203.57,203.47,14.77141239]
[1757016963267,0.7,203.56,203.48,38.82]
[1757016963459,0.7,203.55,203.48,38.82]
[1757016963650,0.7,203.55,203.5,13.59559401]
[1757016963853,0.7,203.55,203.48,38.82]
[1757016963854,15.99396451,203.54,203.52,13.59559401]
[1757016964054,4.9130392,203.54,203.53,38.82]
[1757016964650,0.7,203.54,203.53,38.82]
[1757016965955,11.78092531,203.54,203.53,38.82]
[1757016966158,16.69396451,203.54,203.46,0.14216157]
[1757016966363,11.08092531,203.51,203.48,13.73775558]
[1757016966571,5.6130392,203.54,203.48,13.73775558]
[1757016966869,11.78092531,203.54,203.5,13.59559401]
[1757016967062,11.08092531,203.54,203.51,38.8]
[1757016967782,0.7,203.54,203.51,38.8]
[1757016967953,11.78092531,203.54,203.51,38.8]
[1757016968153,15.99409534,203.54,203.51,38.8]
[1757016968368,11.08092531,203.52,203.45,13.59559401]
[1757016968574,11.08092531,203.5,203.47,13.59559401]
[1757016968875,11.08092531,203.48,203.47,13.59559401]
[1757016969057,11.78092531,203.48,203.42,13.59559401]
[1757016969255,11.78092531,203.48,203.39,15.44723321]
[1757016969256,0.7,203.48,203.44,13.59559401]
[1757016969457,11.08092531,203.46,203.45,38.84]
[1757016969666,11.78092531,203.47,203.45,38.84]
[1757016969870,11.08092531,203.48,203.45,38.84]
[1757016970267,11.08092531,203.46,203.45,38.84]
[1757016970670,11.78092531,203.46,203.45,38.84]
[1757016971874,16.69589631,203.46,203.45,38.84]
[1757016972758,15.99589631,203.46,203.45,38.84]
[1757016973776,16.69589631,203.46,203.45,38.84]
[1757016974175,16.69589631,203.46,203.38,0.14216157]
[1757016974374,16.69589631,203.46,203.35,11.08092531]
[1757016974375,11.08092531,203.41,203.4,13.59559401]
[1757016974884,11.08092531,203.43,203.4,14.26559401]
[1757016975081,11.08092531,203.42,203.4,13.59559401]
[1757016975287,11.08092531,203.41,203.4,13.59559401]
[1757016975786,11.78092531,203.41,203.4,13.59559401]
[1757016976270,15.99710445,203.41,203.4,13.59559401]
[1757016976469,11.08092531,203.41,203.4,13.59559401]
[1757016977588,16.69710445,203.41,203.39,38.84]
[1757016977795,11.77092531,203.4,203.39,38.84]
[1757016977999,4.91545418,203.44,203.39,53.12559401]
[1757016978290,11.08092531,203.42,203.39,53.12559401]
[1757016978486,11.08092531,203.41,203.39,52.43559401]
[1757016978871,5.60545418,203.44,203.39,52.43559401]
[1757016979071,11.08092531,203.41,203.39,52.43559401]
[1757016980270,11.08092531,203.4,203.39,38.84]
[1757016980484,11.08092531,203.4,203.39,52.43559401]
[1757016981485,7.32555189,203.4,203.39,38.84]
[1757016981684,8.01555189,203.4,203.39,38.84]
[1757016981881,8.01555189,203.4,203.39,38.92]
[1757016982183,4.91666256,203.39,203.37,0.03]
[1757016982366,4.91666256,203.39,203.38,38.92]
[1757016982571,31.60666256,203.39,203.37,0.03]
[1757016982991,0.69,203.38,203.37,0.03]
[1757016983587,26.0,203.38,203.37,0.03]
[1757016983900,33.32555189,203.38,203.37,0.03]
[1757016984571,38.9324562,203.38,203.37,0.03]
[1757016985675,31.60690431,203.38,203.37,0.03]
[1757016985881,38.9324562,203.38,203.37,0.03]
[1757016986569,0.69,203.38,203.37,0.03]
[1757016986771,8.01555189,203.38,203.37,0.03]
[1757016987490,12.9324562,203.38,203.37,0.03]
[1757016993193,38.9324562,203.38,203.37,0.03]
[1757016993391,12.9324562,203.38,203.37,0.03]
[1757016993788,26.0,203.36,203.35,0.03]
[1757016993981,7.32555189,203.29,203.28,0.03]
[1757016994401,7.32555189,203.29,203.28,0.72]
[1757016994587,26.0,203.37,203.28,0.72]
[1757016994790,7.32555189,203.31,203.28,0.72]
[1757016995298,12.98226079,203.38,203.29,13.59559401]
[1757016995299,0.69,203.38,203.29,13.59559401]
[1757016995509,7.32555189,203.35,203.31,13.59559401]
[1757016995691,7.32555189,203.34,203.32,0.69]
[1757016995878,7.32555189,203.35,203.33,0.69]
[1757016996085,4.91666256,203.39,203.31,52.61559401]
[1757016996086,7.32555189,203.36,203.34,0.69]
[1757016996301,26.0,203.37,203.34,0.69]
[1757016996500,33.32555189,203.37,203.35,0.69]
[1757016996704,7.32555189,203.36,203.35,0.69]
[1757016997314,12.24303629,203.36,203.32,0.69]
[1757016997486,7.32555189,203.33,203.29,0.69]
[1757016997688,7.32555189,203.34,203.3,52.69559401]
[1757016997914,33.32555189,203.36,203.31,0.69]
[1757016999107,33.32555189,203.36,203.31,5.60858884]
[1757016999292,7.32555189,203.36,203.33,13.59559401]
[1757016999630,0.69,203.4,203.34,0.69]
[1757016999631,7.32555189,203.37,203.34,0.69]
[1757016999809,7.32555189,203.35,203.31,0.69]
[1757016999993,7.32555189,203.33,203.32,39.08]
[1757017000310,7.32555189,203.33,203.3,14.28559401]
[1757017000489,30.9167246,203.39,203.29,39.08]
[1757017000490,7.32555189,203.31,203.29,39.08]
[1757017000811,7.32555189,203.3,203.29,39.77]
[1757017002085,12.24439104,203.3,203.28,0.03]
[1757017002412,7.32555189,203.29,203.28,0.03]
[1757017002792,7.32555189,203.3,203.28,0.72]
[1757017003196,7.32555189,203.29,203.28,0.72]
[1757017004208,26.0,203.26,203.25,0.03]
[1757017004422,33.32555189,203.26,203.25,0.03]
[1757017004591,26.0,203.27,203.25,0.03]
[1757017004909,7.32555189,203.26,203.25,0.72]
[1757017005283,30.91888608,203.3,203.25,0.72]
[1757017005506,7.32555189,203.26,203.25,0.72]
[1757017006907,31.60888608,203.3,203.25,0.03]
[1757017006908,4.9193249,203.28,203.25,0.03]
[1757017007125,26.69,203.3,203.26,39.06]
[1757017007126,4.91911616,203.29,203.26,39.06]
[1757017007302,7.32555189,203.27,203.26,39.06]
[1757017007706,4.91830189,203.33,203.27,13.59559401]
[1757017007899,0.7,203.39,203.29,13.59559401]
[1757017008103,0.7,203.39,203.31,13.59559401]
[1757017008311,0.7,203.39,203.32,0.7]
[1757017008502,4.91642084,203.4,203.32,0.7]
[1757017008702,7.32555189,203.36,203.32,0.7]
[1757017008914,7.32555189,203.36,203.33,0.7]
[1757017009116,7.32555189,203.36,203.34,39.76]
[1757017010405,7.32555189,203.37,203.35,0.7]
[1757017010804,7.32555189,203.36,203.34,39.06]
[1757017010993,7.32555189,203.36,203.34,53.35559401]
[1757017011198,7.32555189,203.38,203.35,14.29559401]
[1757017011411,7.32555189,203.39,203.36,0.7]
[1757017011597,7.32555189,203.37,203.35,13.59559401]
[1757017011808,7.32555189,203.37,203.35,14.29559401]
[1757017012404,7.32555189,203.36,203.35,13.59559401]
[1757017013522,7.32555189,203.36,203.35,14.29559401]
[1757017013722,7.32555189,203.36,203.35,52.63559401]
[1757017014233,7.32555189,203.36,203.35,53.33559401]
[1757017014913,7.32555189,203.37,203.35,53.33559401]
[1757017015398,7.32555189,203.37,203.35,52.63559401]
[1757017015599,7.32555189,203.38,203.36,14.29559401]
[1757017015923,7.32555189,203.39,203.37,0.7]
[1757017016122,7.32555189,203.39,203.38,52.61559401]
[1757017016301,4.07538004,203.45,203.38,52.61559401]
[1757017016502,7.32555189,203.4,203.38,53.31559401]
[1757017016928,7.32555189,203.39,203.38,53.31559401]
[1757017017129,7.32555189,203.39,203.38,13.59559401]
[1757017017431,7.32555189,203.4,203.38,53.31559401]